fUSD/lending_fUSD_20241029
["ID","MTS","AMOUNT","RATE_DAILY","PERIOD"]
[340963730,1730169044369,-20100.92897,0.00016,2]
[340963732,1730169044380,-7830.02109321,0.00016,2]
[340963753,1730169044642,385.0,0.00044121,30]
[340963754,1730169044719,-105423.40200975,0.00016,2]
[340963825,1730169045650,-525.28998688,0.00016,2]
[340963830,1730169045715,547.00855713,0.00044121,30]
[340963834,1730169045744,500.0,0.00044121,30]
[340963838,1730169045785,-36837.23812281,0.00016,2]
[340963840,1730169045799,-70948.50298246,0.00016,2]
[340963842,1730169045810,-375.69081023,0.00016,2]
[340963852,1730169045928,-6648.11395231,0.00016,2]
[340963853,1730169045941,-2297.54848307,0.00016,2]
[340963855,1730169045954,-1262.51936115,0.00016,2]
[340963857,1730169045966,-301.81614855,0.00016,2]
[340963896,1730169046425,-15925.08936354,0.00016,2]
[340963898,1730169046437,-1478.94589,0.00016,2]
[340963900,1730169046448,-1720.68671401,0.00016,2]
[340963901,1730169046458,-35685.23615457,0.00016,2]
[340964065,1730169048325,569.32153971,0.00044121,30]
[340964146,1730169049089,541.89666214,0.00044121,30]
[340964241,1730169050129,537.53,0.00044121,30]
[340964263,1730169051462,541.33893553,0.00044121,30]
[340964264,1730169051497,500.0,0.00044121,30]
[340964265,1730169052839,612.86,0.00044121,30]
[340964266,1730169054328,640.49,0.00044121,30]
[340964267,1730169056549,500.0,0.00044121,30]
[340964268,1730169056830,504.9,0.00044121,30]
[340964269,1730169057219,525.79578701,0.00044121,30]
[340964270,1730169060180,500.0,0.00044121,30]
[340964271,1730169061874,500.0,0.00044121,30]
[340964272,1730169062449,500.0,0.00044121,30]
[340964273,1730169062478,507.0672572,0.00044121,30]
[340964274,1730169062789,500.0,0.00044121,30]
[340964275,1730169062902,557.11353765,0.00044121,30]
[340964276,1730169063072,500.0,0.00044121,30]
[340964277,1730169063256,500.0,0.00044121,30]
[340964278,1730169063355,500.0,0.00044121,30]
[340964279,1730169063538,500.0,0.00044121,30]
[340964280,1730169063670,500.0,0.00044121,30]
[340964281,1730169063973,551.89661188,0.00044121,30]
[340964282,1730169064137,500.0,0.00044121,30]
[340964283,1730169064622,527.73141067,0.00044121,30]
[340964284,1730169064750,500.0,0.00044121,30]
[340964285,1730169065073,500.0,0.00044121,30]
[340964286,1730169065149,505.64078066,0.00044121,30]
[340964287,1730169065377,500.0,0.00044121,30]
[340964288,1730169065842,500.0,0.00044121,30]
[340964289,1730169065998,548.99772911,0.00044121,30]
[340964290,1730169066140,500.0,0.00044121,30]
[340964291,1730169066571,500.0,0.00044121,30]
[340964292,1730169066868,500.0,0.00044121,30]
[340964293,1730169066905,500.0,0.00044121,30]
[340964294,1730169067049,531.47736505,0.00044121,30]
[340964295,1730169067143,253.00181147,0.00044121,30]
[340964296,1730169067176,500.0,0.00044121,30]
[340964297,1730169067461,500.0,0.00044121,30]
[340964298,1730169067728,500.0,0.00044121,30]
[340964299,1730169067765,500.0,0.00044121,30]
[340964300,1730169068026,500.0,0.00044121,30]
[340964301,1730169068066,306.48,0.00044121,30]
[340964302,1730169068314,500.0,0.00044121,30]
[340964303,1730169068628,500.0,0.00044121,30]
[340964304,1730169068689,551.39209507,0.00044121,30]
[340964311,1730169069656,500.0,0.00044121,30]
[340964312,1730169069940,500.0,0.00044121,30]
[340964313,1730169070219,500.0,0.00044121,30]
[340964316,1730169070500,500.0,0.00044121,30]
[340964317,1730169070798,532.94443119,0.00044121,30]
[340964319,1730169070947,550.26941799,0.00044121,30]
[340964320,1730169071159,546.21510585,0.00044121,30]
[340964321,1730169071425,500.0,0.00044121,30]
[340964322,1730169071728,500.0,0.00044121,30]
[340964323,1730169072024,500.0,0.00044121,30]
[340964324,1730169072679,500.0,0.00044121,30]
[340964325,1730169072948,634.27629036,0.00044121,30]
[340964326,1730169073525,541.9444508,0.00044121,30]
[340964327,1730169073797,500.0,0.00044121,30]
[340964328,1730169074126,554.57,0.00044121,30]
[340964329,1730169074160,646.21401395,0.00044121,30]
[340964330,1730169075699,500.0,0.00044121,30]
[340964331,1730169075984,500.0,0.00044121,30]
[340964333,1730169076281,500.0,0.00044121,30]
[340964334,1730169076593,500.0,0.00044121,30]
[340964335,1730169077017,548.83033886,0.00044121,30]
[340964336,1730169077047,454.6,0.00044121,30]
[340964337,1730169077967,500.0,0.00044121,30]
[340964338,1730169078230,258.87,0.00044121,30]
[340964339,1730169078764,526.94305417,0.00044121,30]
[340964340,1730169081153,520.2272001,0.00044121,30]
[340964341,1730169082670,1000.0,0.00044121,120]
[340964342,1730169082940,1000.0,0.00044121,120]
[340964343,1730169083172,502.14647892,0.00044121,30]
[340964344,1730169083246,1000.0,0.00044121,120]
[340964345,1730169083699,530.08160255,0.00044121,30]
[340964346,1730169086352,530.78043583,0.00044121,30]
[340964347,1730169088185,535.63376869,0.00044121,30]
[340964348,1730169088480,510.19654186,0.00044121,30]
[340964349,1730169088693,524.36748,0.00044121,30]
[340964350,1730169090709,529.04881735,0.00044121,30]
[340964351,1730169093071,524.8079622,0.00044121,30]
[340964352,1730169093390,500.57925587,0.00044121,30]
[340964353,1730169094961,519.73008468,0.00044121,30]
[340964354,1730169095992,556.30074447,0.00044121,30]
[340964355,1730169096022,511.47366655,0.00044121,30]
[340964356,1730169100333,535.22546926,0.00044121,30]
[340964357,1730169100866,186.70449334,0.00044121,30]
[340964358,1730169102264,500.0,0.00044121,30]
[340964359,1730169102551,500.0,0.00044121,30]
[340964360,1730169102848,571.9332414,0.00044121,30]
[340964361,1730169103484,540.46338724,0.00044121,30]
[340964362,1730169103515,500.0,0.00044121,30]
[340964363,1730169103705,153.55243597,0.00044121,30]
[340964364,1730169104554,543.25002885,0.00044121,30]
[340964365,1730169106863,517.57170268,0.00044121,30]
[340964366,1730169107540,543.46134693,0.00044121,30]
[340964367,1730169108079,500.0,0.00044121,30]
[340964368,1730169108360,500.0,0.00044121,30]
[340964369,1730169108642,500.0,0.00044121,30]
[340964370,1730169108988,500.0,0.00044121,30]
[340964371,1730169109335,500.0,0.00044121,30]
[340964372,1730169109805,500.0,0.00044121,30]
[340964373,1730169110295,186.69323506,0.00044121,30]
[340964374,1730169110394,540.05446695,0.00044121,30]
[340964375,1730169110640,502.21953553,0.00044121,30]
[340964376,1730169111115,516.60231152,0.00044121,30]
[340964377,1730169113228,521.0785045,0.00044121,30]
[340964378,1730169113371,563.69400205,0.00044121,30]
[340964379,1730169113868,525.88725666,0.00044121,30]
[340964380,1730169116041,605.91504314,0.00044121,30]
[340964381,1730169116245,526.31252377,0.00044121,30]
[340964382,1730169117750,500.0,0.00044121,30]
[340964383,1730169118044,500.0,0.00044121,30]
[340964384,1730169118327,500.0,0.00044121,30]
[340964385,1730169118611,500.0,0.00044121,30]
[340964386,1730169118945,634.13875664,0.00044121,30]
[340964387,1730169118980,500.0,0.00044121,30]
[340964388,1730169119089,540.79348042,0.00044121,30]
[340964389,1730169119251,524.58551457,0.00044121,30]
[340964390,1730169121722,502.00386359,0.00044121,30]
[340964391,1730169122028,500.0,0.00044121,30]
[340964392,1730169122241,521.86766759,0.00044121,30]
[340964393,1730169122466,500.0,0.00044121,30]
[340964394,1730169122744,500.0,0.00044121,30]
[340964395,1730169123025,500.0,0.00044121,30]
[340964396,1730169123323,500.0,0.00044121,30]
[340964397,1730169123688,500.0,0.00044121,30]
[340964398,1730169124092,500.0,0.00044121,30]
[340964399,1730169124362,500.0,0.00044121,30]
[340964400,1730169124676,500.0,0.00044121,30]
[340964401,1730169125083,500.0,0.00044121,30]
[340964402,1730169125128,497.46839638,0.00044121,30]
[340964403,1730169125356,500.0,0.00044121,30]
[340964404,1730169125390,500.0,0.00044121,30]
[340964405,1730169125653,500.0,0.00044121,30]
[340964406,1730169125681,607.90894949,0.00044121,30]
[340964407,1730169126044,207.65,0.00044121,30]
[340964408,1730169128038,543.45908191,0.00044121,30]
[340964409,1730169128591,518.60453172,0.00044121,30]
[340964410,1730169129515,511.58464921,0.00044121,30]
[340964411,1730169129878,522.73624081,0.00044121,30]
[340964412,1730169130764,552.63226131,0.00044121,30]
[340964413,1730169133466,511.48687532,0.00044121,30]
[340964414,1730169135525,514.68440002,0.00044121,30]
[340964415,1730169136201,538.65947465,0.00044121,30]
[340964416,1730169138303,536.0150552,0.00044121,30]
[340964417,1730169138688,500.0,0.00044121,30]
[340964418,1730169138994,195.08234558,0.00044121,30]
[340964419,1730169139099,519.06405734,0.00044121,30]
[340964420,1730169140164,539.97169079,0.00044121,30]
[340964421,1730169142316,500.0,0.00044121,30]
[340964422,1730169142657,392.1759358,0.00044121,30]
[340964423,1730169143462,500.0,0.00044121,30]
[340964424,1730169144152,500.0,0.00044121,30]
[340964425,1730169144414,512.6571431,0.00044121,30]
[340964426,1730169147029,500.0,0.00044121,30]
[340964427,1730169148099,500.0,0.00044121,30]
[340964428,1730169148380,500.0,0.00044121,30]
[340964429,1730169149441,500.0,0.00044121,30]
[340964430,1730169151028,544.07095607,0.00044121,30]
[340964431,1730169152706,173.1264868,0.00044121,30]
[340964432,1730169153250,623.24987101,0.00044121,30]
[340964433,1730169154144,517.96042766,0.00044121,30]
[340964434,1730169156067,500.0,0.00044121,30]
[340964435,1730169156329,500.0,0.00044121,30]
[340964436,1730169156523,506.32700842,0.00044121,30]
[340964437,1730169156593,500.0,0.00044121,30]
[340964438,1730169156811,500.0,0.00044121,30]
[340964439,1730169156863,500.0,0.00044121,30]
[340964440,1730169157088,500.0,0.00044121,30]
[340964441,1730169157144,500.0,0.00044121,30]
[340964442,1730169157412,158.92,0.00044121,30]
[340964443,1730169157448,502.20875431,0.00044121,30]
[340964444,1730169160583,522.92519846,0.00044121,30]
[340964445,1730169161576,535.79546455,0.00044121,30]
[340964446,1730169161938,566.07507057,0.00044121,30]
[340964447,1730169162841,500.0,0.00044121,30]
[340964448,1730169163198,515.41153982,0.00044121,30]
[340964449,1730169164300,500.0,0.00044121,30]
[340964450,1730169164689,500.0,0.00044121,30]
[340964451,1730169164933,500.0,0.00044121,30]
[340964452,1730169165243,500.0,0.00044121,30]
[340964453,1730169165524,544.61709334,0.00044121,30]
[340964454,1730169166224,505.41165452,0.00044121,30]
[340964455,1730169167102,500.0,0.00044121,30]
[340964456,1730169167412,160.62631775,0.00044121,30]
[340964457,1730169168414,504.88964172,0.00044121,30]
[340964458,1730169168718,511.89698941,0.00044122,30]
[340964459,1730169169738,848.53,0.00044122,30]
[340964460,1730169170032,848.53,0.00044122,30]
[340964461,1730169170349,848.53,0.00044122,30]
[340964462,1730169170615,848.53,0.00044122,30]
[340964463,1730169170882,848.53,0.00044122,30]
[340964464,1730169171334,848.53,0.00044122,30]
[340964465,1730169171610,848.53,0.00044122,30]
[340964466,1730169171907,848.53,0.00044122,30]
[340964467,1730169171964,517.22945347,0.00044122,30]
[340964468,1730169172208,848.53,0.00044122,30]
[340964469,1730169172488,848.53,0.00044122,30]
[340964470,1730169172769,848.53,0.00044122,30]
[340964471,1730169173072,848.53,0.00044122,30]
[340964472,1730169173350,848.53,0.00044122,30]
[340964473,1730169173395,500.0,0.00044122,30]
[340964474,1730169173611,848.53,0.00044122,30]
[340964475,1730169173901,848.53,0.00044122,30]
[340964476,1730169174010,500.0,0.00044122,30]
[340964477,1730169174168,848.53,0.00044122,30]
[340964478,1730169174271,500.0,0.00044122,30]
[340964479,1730169174339,500.0,0.00044122,30]
[340964480,1730169174649,500.0,0.00044122,30]
[340964481,1730169174907,848.53,0.00044122,30]
[340964482,1730169174937,445.24309814,0.00044122,30]
[340964483,1730169174968,500.0,0.00044122,30]
[340964484,1730169174997,523.95512664,0.00044122,30]
[340964485,1730169175212,500.0,0.00044122,30]
[340964486,1730169175417,848.53,0.00044122,30]
[340964487,1730169175482,500.0,0.00044122,30]
[340964488,1730169175693,848.53,0.00044122,30]
[340964489,1730169175753,500.0,0.00044122,30]
[340964490,1730169175969,848.53,0.00044122,30]
[340964491,1730169176043,371.06,0.00044122,30]
[340964492,1730169176125,500.0,0.00044122,30]
[340964493,1730169176240,848.53,0.00044122,30]
[340964494,1730169176428,520.35107043,0.00044122,30]
[340964495,1730169176624,848.53,0.00044122,30]
[340964496,1730169176781,848.53,0.00044122,30]
[340964497,1730169177047,848.62514121,0.00044122,30]
[340964498,1730169177452,545.64618606,0.00044122,30]
[340964499,1730169178765,500.0,0.00044122,30]
[340964500,1730169179055,500.0,0.00044122,30]
[340964501,1730169179101,509.83856515,0.00044122,30]
[340964502,1730169179274,500.0,0.00044122,30]
[340964503,1730169179342,565.33384354,0.00044122,30]
[340964504,1730169179548,500.0,0.00044122,30]
[340964505,1730169179837,500.0,0.00044122,30]
[340964506,1730169180124,500.0,0.00044122,30]
[340964507,1730169180688,500.0,0.00044122,30]
[340964508,1730169182785,563.17988927,0.00044122,30]
[340964510,1730169185195,382.77525149,0.00044122,30]
[340964511,1730169187991,569.02547161,0.00044122,30]
[340964512,1730169188098,593.5137682,0.00044122,30]
[340964513,1730169190441,316.82732736,0.00044122,30]
[340964514,1730169200945,598.4637114,0.00044122,30]
[340964515,1730169203194,500.0,0.00044122,30]
[340964516,1730169203473,500.0,0.00044122,30]
[340964517,1730169203776,500.0,0.00044122,30]
[340964518,1730169204064,500.0,0.00044122,30]
[340964519,1730169204211,524.16622714,0.00044122,30]
[340964520,1730169204390,500.0,0.00044122,30]
[340964521,1730169205460,535.77194256,0.00044122,30]
[340964522,1730169205750,500.0,0.00044122,30]
[340964523,1730169205986,500.0,0.00044122,30]
[340964524,1730169206360,500.0,0.00044122,30]
[340964525,1730169206408,513.20988737,0.00044122,30]
[340964526,1730169206602,502.78162334,0.00044122,30]
[340964527,1730169206980,500.0,0.00044122,30]
[340964528,1730169207009,500.0,0.00044122,30]
[340964529,1730169207267,339.42821582,0.00044122,30]
[340964530,1730169207298,500.0,0.00044122,30]
[340964531,1730169207600,500.0,0.00044122,30]
[340964532,1730169208915,398.38,0.00044122,30]
[340964533,1730169212390,500.0,0.00044122,30]
[340964534,1730169214395,523.12859359,0.00044122,30]
[340964535,1730169214816,500.0,0.00044122,30]
[340964536,1730169215090,500.0,0.00044122,30]
[340964537,1730169215176,585.29003752,0.00044122,30]
[340964538,1730169215357,500.0,0.00044122,30]
[340964539,1730169215646,500.0,0.00044122,30]
[340964540,1730169216030,500.0,0.00044122,30]
[340964541,1730169217426,598.46647105,0.00044122,30]
[340964542,1730169217770,541.01215249,0.00044122,30]
[340964543,1730169218081,500.0,0.00044122,30]
[340964544,1730169218279,555.36343049,0.00044122,30]
[340964545,1730169218388,500.0,0.00044122,30]
[340964546,1730169218652,500.0,0.00044122,30]
[340964547,1730169218953,500.0,0.00044122,30]
[340964548,1730169219253,591.46150788,0.00044122,30]
[340964549,1730169220098,500.1731346,0.00044122,30]
[340964550,1730169220578,634.97522405,0.00044122,30]
[340964551,1730169223013,500.0,0.00044122,30]
[340964552,1730169223455,500.0,0.00044122,30]
[340964553,1730169223588,180.16049928,0.00044122,30]
[340964554,1730169226780,500.0,0.00044122,30]
[340964555,1730169227120,514.08602622,0.00044122,30]
[340964556,1730169228252,500.0,0.00044122,30]
[340964557,1730169229857,535.55878944,0.00044122,30]
[340964558,1730169231314,504.81582408,0.00044122,30]
[340964559,1730169233720,504.44875747,0.00044122,30]
[340964560,1730169236140,503.28145768,0.00044122,30]
[340964561,1730169237280,-1063.47,0.00015107,2]
[340964562,1730169237307,-720.850962,0.0001582,2]
[340964563,1730169237331,-199.85954673,0.000159,2]
[340964564,1730169237357,-177.93004021,0.000159,2]
[340964565,1730169237382,-1044.39142105,0.000159,2]
[340964566,1730169237404,-4581.46840119,0.000159,2]
[340964567,1730169237433,-77622.4521044,0.0001599,3]
[340964568,1730169237456,-21004.25494643,0.00015999,2]
[340964569,1730169237482,-246.40492703,0.00015999,2]
[340964570,1730169237509,-500.0,0.00015999,2]
[340964571,1730169237533,-1142838.91765096,0.00016,2]
[340964572,1730169238829,555.75970493,0.00044122,30]
[340964573,1730169240645,548.96330747,0.00044122,30]
[340964574,1730169241109,590.67011773,0.00044122,30]
[340964575,1730169242232,549.69267919,0.00044122,30]
[340964576,1730169242323,500.0,0.00044122,30]
[340964577,1730169242593,500.0,0.00044122,30]
[340964578,1730169242722,512.07851039,0.00044122,30]
[340964579,1730169242892,500.0,0.00044122,30]
[340964580,1730169243200,500.0,0.00044122,30]
[340964581,1730169243814,500.0,0.00044122,30]
[340964582,1730169244092,500.0,0.00044122,30]
[340964583,1730169244472,592.06313446,0.00044122,30]
[340964584,1730169244585,500.0,0.00044122,30]
[340964585,1730169244995,500.0,0.00044122,30]
[340964586,1730169245355,175.75352534,0.00044122,30]
[340964587,1730169245792,635.63487348,0.00044122,30]
[340964588,1730169247424,271.70847554,0.00044122,30]
[340964589,1730169248431,179.91400259,0.00044122,30]
[340964590,1730169248710,3000.0,0.00044122,30]
[340964591,1730169250144,500.0,0.00044122,30]
[340964592,1730169250448,500.0,0.00044122,30]
[340964593,1730169250476,500.0,0.00044122,30]
[340964594,1730169250727,500.0,0.00044122,30]
[340964595,1730169250925,542.9848634,0.00044122,30]
[340964596,1730169251019,500.0,0.00044122,30]
[340964597,1730169251303,500.0,0.00044122,30]
[340964598,1730169251612,500.0,0.00044122,30]
[340964599,1730169252478,537.27965723,0.00044122,30]
[340964600,1730169253450,523.08883087,0.00044122,30]
[340964601,1730169254616,500.0,0.00044122,30]
[340964602,1730169254843,593.60273984,0.00044122,30]
[340964603,1730169254939,500.0,0.00044122,30]
[340964604,1730169255222,500.0,0.00044122,30]
[340964605,1730169255487,500.0,0.00044122,30]
[340964606,1730169255768,500.0,0.00044122,30]
[340964607,1730169256034,500.0,0.00044122,30]
[340964608,1730169256337,500.0,0.00044122,30]
[340964609,1730169256465,550.72674155,0.00044122,30]
[340964610,1730169257555,500.0,0.00044122,30]
[340964611,1730169258861,536.96436056,0.00044122,30]
[340964612,1730169259001,599.93281876,0.00044122,30]
[340964613,1730169261269,204.81016769,0.00044122,30]
[340964614,1730169264806,231.90259528,0.00044122,30]
[340964615,1730169265857,577.73257196,0.00044122,30]
[340964616,1730169268139,591.43175971,0.00044122,30]
[340964617,1730169271055,512.48608405,0.00044122,30]
[340964618,1730169271458,547.61231043,0.00044122,30]
[340964619,1730169273781,541.0544912,0.00044122,30]
[340964620,1730169274528,553.97763462,0.00044122,30]
[340964621,1730169275191,537.31606884,0.00044122,30]
[340964622,1730169277349,520.64973373,0.00044122,30]
[340964623,1730169280088,506.29830893,0.00044122,30]
[340964624,1730169280117,508.7538531,0.00044122,30]
[340964625,1730169282945,150.0,0.00044122,120]
[340964626,1730169284503,500.0,0.00044122,30]
[340964627,1730169284834,238.02662671,0.00044122,30]
[340964628,1730169292615,223.25508681,0.00044122,30]
[340964629,1730169295594,505.63523942,0.00044122,30]
[340964630,1730169296396,503.3614187,0.00044122,30]
[340964631,1730169297159,543.01172056,0.00044122,30]
[340964632,1730169298059,500.0,0.00044122,30]
[340964633,1730169298349,500.0,0.00044122,30]
[340964634,1730169298426,558.10960728,0.00044122,30]
[340964635,1730169298608,500.0,0.00044122,30]
[340964636,1730169298942,500.0,0.00044122,30]
[340964637,1730169299229,500.0,0.00044122,30]
[340964638,1730169299312,543.3772459,0.00044122,30]
[340964639,1730169299531,208.22313437,0.00044122,30]
[340964640,1730169299682,247.6436591,0.00044122,30]
[340964641,1730169301356,529.34537458,0.00044122,30]
[340964642,1730169301706,500.0,0.00044122,30]
[340964643,1730169301992,500.0,0.00044122,30]
[340964644,1730169302267,500.0,0.00044122,30]
[340964645,1730169305000,581.77060234,0.00044122,30]
[340964646,1730169306140,3584.47,0.00044122,30]
[340964647,1730169306594,513.33173616,0.00044122,30]
[340964648,1730169306777,3584.47,0.00044122,30]
[340964649,1730169306990,500.0,0.00044122,30]
[340964650,1730169307062,3584.47,0.00044122,30]
[340964651,1730169307262,163.7053161,0.00044122,30]
[340964652,1730169307335,3584.47,0.00044122,30]
[340964653,1730169307645,3584.47,0.00044122,30]
[340964654,1730169307963,3584.47,0.00044122,30]
[340964655,1730169308309,3584.47,0.00044122,30]
[340964656,1730169308603,3584.47,0.00044122,30]
[340964657,1730169309231,3584.47,0.00044122,30]
[340964658,1730169309262,523.64797129,0.00044122,30]
[340964659,1730169309343,3584.47,0.00044122,30]
[340964660,1730169309631,3584.47,0.00044122,30]
[340964661,1730169309918,3584.47,0.00044122,30]
[340964662,1730169310176,500.0,0.00044122,30]
[340964663,1730169310448,500.0,0.00044122,30]
[340964664,1730169310565,3584.47,0.00044122,30]
[340964665,1730169310880,3584.47,0.00044122,30]
[340964666,1730169311171,3584.47,0.00044122,30]
[340964667,1730169311439,3584.47,0.00044122,30]
[340964668,1730169311595,207.09501629,0.00044122,30]
[340964669,1730169311747,3584.47,0.00044122,30]
[340964670,1730169312066,3584.47,0.00044122,30]
[340964671,1730169312354,3584.47,0.00044122,30]
[340964672,1730169312663,3584.47,0.00044122,30]
[340964673,1730169312967,3584.47,0.00044122,30]
[340964674,1730169313116,500.0,0.00044122,30]
[340964675,1730169313256,3584.47,0.00044122,30]
[340964676,1730169313393,500.0,0.00044122,30]
[340964677,1730169313532,3584.47,0.00044122,30]
[340964678,1730169313684,500.0,0.00044122,30]
[340964679,1730169313713,502.45271566,0.00044122,30]
[340964680,1730169313979,500.0,0.00044122,30]
[340964681,1730169314148,3584.61,0.00044122,30]
[340964682,1730169314263,500.0,0.00044122,30]
[340964683,1730169314599,500.0,0.00044122,30]
[340964684,1730169314863,500.0,0.00044122,30]
[340964685,1730169315143,500.0,0.00044122,30]
[340964686,1730169315349,500.0,0.00044122,30]
[340964687,1730169315425,518.73141834,0.00044122,30]
[340964688,1730169315468,152.36868881,0.00044122,30]
[340964689,1730169315638,500.0,0.00044122,30]
[340964690,1730169315911,500.0,0.00044122,30]
[340964691,1730169316178,500.0,0.00044122,30]
[340964692,1730169316471,500.0,0.00044122,30]
[340964693,1730169316746,529.4548731,0.00044122,30]
[340964694,1730169317750,506.930039,0.00044122,30]
[340964695,1730169318033,521.90252088,0.00044122,30]
[340964696,1730169320819,542.57823372,0.00044122,30]
[340964697,1730169325268,521.5911413,0.00044122,30]
[340964698,1730169326096,500.0,0.00044122,30]
[340964699,1730169327364,505.74490399,0.00044122,30]
[340964700,1730169331718,511.09844714,0.00044122,30]
[340964701,1730169332475,594.80550083,0.00044122,30]
[340964702,1730169336244,500.0,0.00044122,30]
[340964703,1730169336526,500.0,0.00044122,30]
[340964704,1730169336586,507.23073576,0.00044122,30]
[340964705,1730169336719,511.53427437,0.00044122,30]
[340964706,1730169336806,500.0,0.00044122,30]
[340964707,1730169337095,500.0,0.00044122,30]
[340964708,1730169337376,586.26744021,0.00044122,30]
[340964709,1730169338724,506.8782162,0.00044122,30]
[340964710,1730169340185,533.61999733,0.00044122,30]
[340964711,1730169343309,512.60798091,0.00044122,30]
[340964712,1730169343509,500.0,0.00044122,30]
[340964713,1730169343797,500.0,0.00044122,30]
[340964714,1730169344072,506.93862819,0.00044122,30]
[340964715,1730169345426,505.08024623,0.00044122,30]
[340964716,1730169348216,500.0,0.00044122,30]
[340964717,1730169350599,522.01650075,0.00044122,30]
[340964718,1730169350854,518.71231104,0.00044122,30]
[340964719,1730169351056,500.0,0.00044122,30]
[340964720,1730169351330,500.0,0.00044122,30]
[340964721,1730169351624,500.0,0.00044122,30]
[340964722,1730169352241,500.0,0.00044122,30]
[340964723,1730169352549,500.0,0.00044122,30]
[340964724,1730169352834,500.0,0.00044122,30]
[340964725,1730169352864,551.46557427,0.00044122,30]
[340964726,1730169353112,500.0,0.00044122,30]
[340964727,1730169353382,537.40140205,0.00044122,30]
[340964729,1730169355203,500.0,0.00044122,30]
[340964730,1730169358574,500.0,0.00044122,30]
[340964731,1730169358676,494.67279671,0.00044122,30]
[340964732,1730169360708,511.08101289,0.00044122,30]
[340964733,1730169363269,191.89450132,0.00044122,30]
[340964734,1730169364203,533.00176275,0.00044122,30]
[340964735,1730169364611,532.84117869,0.00044122,30]
[340964736,1730169367273,629.24,0.00044122,30]
[340964737,1730169369389,529.95786594,0.00044122,30]
[340964738,1730169371047,510.08487595,0.00044122,30]
[340964739,1730169373628,512.78695644,0.00044122,30]
[340964740,1730169374585,535.73195282,0.00044122,30]
[340964741,1730169377903,607.11745777,0.00044122,30]
[340964742,1730169380009,500.0,0.00044122,30]
[340964743,1730169380229,554.52573082,0.00044122,30]
[340964744,1730169381367,500.0,0.00044122,30]
[340964745,1730169381973,500.0,0.00044122,30]
[340964746,1730169382362,500.0,0.00044122,30]
[340964747,1730169382392,515.88900444,0.00044122,30]
[340964748,1730169382496,500.0,0.00044122,30]
[340964749,1730169382524,500.0,0.00044122,30]
[340964750,1730169382790,500.0,0.00044122,30]
[340964751,1730169383064,568.66303769,0.00044122,30]
[340964752,1730169387564,331.46027089,0.00044122,30]
[340964753,1730169391945,500.0,0.00044122,30]